bitfinex/quotes_ETHUSD_20260131
["timestamp","ask_amount","ask_price","bid_price","bid_amount"]
[1769901827820,0.0845412,2469.7,2468.0,0.01216594]
[1769901828024,0.01216594,2471.3,2469.1,0.1024]
[1769901828314,0.21146167,2472.1,2469.4,0.01216594]
[1769901828514,0.01216594,2471.8,2469.9,1.01218672]
[1769901828719,0.01216594,2472.0,2469.9,1.01218672]
[1769901828916,0.01216594,2471.4,2470.0,0.50609336]
[1769901829138,0.01216594,2471.2,2469.9,1.01218672]
[1769901829450,0.21146167,2472.1,2470.6,0.01216594]
[1769901829653,0.01216594,2473.8,2470.8,0.01216594]
[1769901829814,13.11692628,2472.2,2469.8,1.0121945]
[1769901830013,0.01216594,2472.3,2469.8,1.0121945]
[1769901830014,13.34045392,2472.0,2469.8,1.0121945]
[1769901830210,13.34045392,2472.0,2469.3,0.01216594]
[1769901830211,13.12909222,2470.9,2467.8,1.01486295]
[1769901830439,0.01216594,2471.1,2468.5,0.01216594]
[1769901830745,14.12833497,2471.8,2470.1,0.01216594]
[1769901830929,14.12833497,2471.8,2469.7,0.01216594]
[1769901830930,15.46481355,2471.8,2469.7,0.01216594]
[1769901831107,15.46481355,2471.8,2469.1,0.01216594]
[1769901831108,13.11692628,2471.4,2469.5,0.01216594]
[1769901831310,13.11692628,2471.4,2469.8,0.01216594]
[1769901831527,0.85,2471.3,2469.1,0.01216594]
[1769901831738,14.42861891,2471.3,2469.1,0.01216594]
[1769901831925,0.85,2471.2,2469.7,0.01216594]
[1769901832106,13.96692628,2471.2,2469.5,0.01216594]
[1769901832307,13.96692628,2471.2,2469.1,0.01216594]
[1769901832308,14.51361891,2471.1,2469.1,0.01216594]
[1769901832510,14.12866241,2471.0,2469.4,0.01216594]
[1769901832746,14.12866241,2471.0,2469.1,0.01216594]
[1769901832747,14.12866241,2471.0,2469.1,1.02467415]
[1769901832947,13.11692628,2470.8,2468.9,1.01256692]
[1769901833149,13.11692628,2470.8,2468.9,1.01258564]
[1769901833440,13.12909222,2470.8,2468.6,1.02486577]
[1769901833659,13.12909222,2470.8,2468.1,4.06380735]
[1769901833660,13.12909222,2470.0,2467.3,4.06507406]
[1769901833809,13.11692628,2469.4,2467.5,4.05266303]
[1769901834011,13.11692628,2469.4,2467.6,1.02526031]
[1769901834012,0.85,2469.3,2467.6,1.02526031]
[1769901834256,1.31169263,2469.3,2467.6,1.01309437]
[1769901834680,13.11692628,2474.0,2470.4,0.01216594]
[1769901834818,1.01030511,2474.5,2472.2,0.21133332]
[1769901835139,14.42861891,2473.9,2472.2,0.21133332]
[1769901835856,14.42861891,2473.9,2472.4,0.01216594]
[1769901836059,13.11692628,2473.5,2472.2,0.21133332]
[1769901836212,13.11692628,2473.3,2471.2,0.01216594]
[1769901836543,13.11692628,2473.3,2470.3,0.01216594]
[1769901836544,14.13996925,2473.1,2470.5,0.01216594]
[1769901836718,14.12780331,2473.1,2471.4,0.01216594]
[1769901836920,14.97780331,2473.1,2471.6,0.01216594]
[1769901837144,2.24460964,2473.0,2471.4,1.02372834]
[1769901837334,5.35520077,2473.2,2471.4,1.02372834]
[1769901837335,1.31169263,2473.2,2471.8,0.01216594]
[1769901837640,1.02279778,2473.7,2471.6,1.01148488]
[1769901837843,13.32817985,2473.4,2470.8,0.01216594]
[1769901838034,13.12909222,2473.2,2471.4,1.01157225]
[1769901838236,13.12909222,2473.2,2470.8,0.01216594]
[1769901838415,13.11692628,2472.7,2470.9,0.21146553]
[1769901838618,1.01112234,2472.5,2470.9,0.21146553]
[1769901838948,13.11692628,2472.3,2470.9,0.21146553]
[1769901839452,13.11692628,2472.0,2470.9,0.08856605]
[1769901840314,0.849,2472.2,2469.0,0.0011]
[1769901840315,13.12909222,2471.6,2469.0,0.0011]
[1769901840515,1.01153145,2471.5,2469.9,0.01216594]
[1769901840723,14.12845773,2471.5,2469.5,0.01216594]
[1769901840955,14.12845773,2471.5,2468.3,8.81783255]
[1769901840956,13.12909222,2471.0,2469.0,1.01362136]
[1769901841183,0.01216594,2469.4,2469.0,0.0011]
[1769901841451,0.01216594,2469.4,2466.8,0.01216594]
[1769901841452,0.01216594,2469.1,2466.8,0.01216594]
[1769901841622,0.01216594,2469.1,2466.7,0.01216594]
[1769901841623,0.01216594,2468.8,2466.7,0.01216594]
[1769901841814,0.01216594,2468.8,2466.4,3.07631156]
[1769901841815,0.01216594,2468.4,2466.4,1.02578903]
[1769901842018,0.01216594,2468.7,2466.4,1.01362309]
[1769901842235,0.01216594,2467.7,2466.3,1.01365844]
[1769901842447,13.11692628,2468.9,2466.3,1.01365844]
[1769901842742,0.01216594,2468.6,2466.3,1.02582438]
[1769901842942,0.01216594,2468.2,2466.3,1.02582438]
[1769901843246,0.01216594,2468.1,2466.4,0.50926471]
[1769901843434,0.01216594,2468.3,2466.4,0.50926471]
[1769901843747,0.01216594,2469.8,2467.2,0.01216594]
[1769901843947,0.01216594,2469.3,2467.0,0.01216594]
[1769901844145,0.01216594,2469.1,2467.1,0.01216594]
[1769901844444,0.01216594,2468.4,2466.4,0.50926471]
[1769901844754,0.01216594,2468.3,2466.5,1.01358199]
[1769901844935,0.01216594,2468.3,2466.6,0.55771747]
[1769901845142,0.01216594,2468.2,2466.6,0.55771747]
[1769901845449,13.11692628,2469.0,2466.6,0.55771747]
[1769901845637,0.01216594,2468.7,2466.6,0.55771747]
[1769901845828,0.01216594,2468.3,2466.6,0.55771747]
[1769901846027,0.01216594,2468.5,2466.6,0.55771747]
[1769901846337,0.01216594,2468.4,2466.6,0.55771747]
[1769901846643,0.01216594,2468.5,2466.7,1.01349981]
[1769901846848,13.12909222,2469.0,2466.7,1.01349981]
[1769901846849,1.01237517,2469.5,2467.2,0.01216594]
[1769901847034,0.01216594,2469.6,2467.3,0.01216594]
[1769901847221,0.01216594,2469.6,2466.9,0.24573624]
[1769901847222,0.01216594,2467.6,2466.8,0.56252166]
[1769901847420,0.01216594,2467.6,2465.7,4.05558212]
[1769901847421,0.01216594,2466.7,2465.1,1.00617099]
[1769901847621,0.01216594,2467.3,2465.1,1.00617099]
[1769901847622,0.86116594,2468.4,2465.3,0.01216594]
[1769901847925,0.86116594,2468.4,2465.8,0.01216594]
[1769901847926,0.01216594,2468.3,2465.8,0.01216594]
[1769901848226,0.01216594,2467.7,2465.8,1.00617099]
[1769901848436,0.01216594,2467.7,2465.5,0.01216594]
[1769901848739,1.02517332,2467.9,2465.7,1.01391085]
[1769901848953,0.01216594,2467.7,2465.8,1.50826143]
[1769901849150,0.01216594,2468.0,2466.0,0.2335703]
[1769901849360,4.06390637,2468.1,2466.0,0.2335703]
[1769901849361,0.01216594,2468.8,2466.7,0.0011]
[1769901849529,0.01216594,2469.8,2467.4,0.01216594]
[1769901849733,0.01216594,2469.7,2467.5,0.82959815]
[1769901849934,0.01216594,2469.5,2467.5,0.01216594]
[1769901850167,4.06107678,2469.9,2467.5,0.01216594]
[1769901850168,0.01216594,2470.2,2468.0,0.01216594]
[1769901850444,0.01216594,2470.2,2468.3,0.01216594]
[1769901850641,1.02402492,2470.7,2468.3,0.01216594]
[1769901850642,0.01216594,2470.8,2468.6,0.01216594]
[1769901850845,0.01216594,2470.8,2468.7,0.8170638]
[1769901850846,0.01216594,2470.1,2468.7,0.8170638]
[1769901851060,0.01216594,2470.1,2468.6,0.61509358]
[1769901851468,4.04727213,2471.0,2469.1,0.01216594]
[1769901851659,4.05878296,2471.3,2469.3,0.01216594]
[1769901851833,4.05878296,2471.3,2468.9,1.00617099]
[1769901851834,0.01216594,2470.9,2468.9,1.00617099]
[1769901852033,0.01216594,2470.6,2469.0,0.81907615]
[1769901852265,0.01216594,2470.4,2468.6,0.61509358]
[1769901852437,0.01216594,2470.4,2468.3,4.05104314]
[1769901852438,0.01216594,2470.0,2468.3,1.0128108]
[1769901852643,1.01210477,2470.1,2468.2,0.01216594]
[1769901852837,1.02427071,2470.1,2468.2,0.4063829]
[1769901853050,0.01216594,2469.7,2467.9,1.01300408]
[1769901853357,13.06191468,2470.0,2467.9,1.01300381]
[1769901853558,1.42200107,2469.9,2468.0,0.50650318]
[1769901853777,0.01216594,2469.8,2468.0,0.50650318]
[1769901853935,0.01216594,2469.4,2467.1,1.01833693]
[1769901854259,0.01216594,2469.6,2467.4,0.01216594]
[1769901854460,13.07408062,2469.8,2467.9,1.01297638]
[1769901854644,1.02447562,2469.6,2467.5,4.0526497]
[1769901854845,1.01230968,2469.6,2467.8,0.01216594]
[1769901855054,1.01230968,2469.6,2467.9,0.822092]
[1769901855255,1.01230968,2469.6,2467.6,1.01833693]
[1769901855256,0.6632816,2469.5,2467.6,1.01833693]
[1769901855462,1.01230968,2469.6,2467.9,0.01216594]
[1769901855665,1.01202283,2470.3,2468.5,0.01216594]
[1769901855841,0.01216594,2470.0,2468.2,1.00617099]
[1769901856046,0.01216594,2470.2,2468.3,1.82817327]
[1769901856245,0.01216594,2469.7,2468.4,0.82200228]
[1769901856466,0.01216594,2469.6,2467.9,1.00617099]
[1769901856670,1.01230968,2469.6,2468.0,1.01296596]
[1769901856872,1.01230968,2469.6,2468.1,0.60710008]
[1769901857037,0.01216594,2469.4,2468.1,0.60710008]
[1769901857238,0.01216594,2469.0,2467.5,1.00617099]
[1769901857442,0.01216594,2468.8,2467.6,1.83673848]
[1769901857661,0.01216594,2468.8,2467.4,1.01319963]
[1769901857943,0.01216594,2468.8,2467.0,5.42382268]
[1769901857944,0.01216594,2468.4,2467.0,1.01336949]
[1769901858138,0.01216594,2468.4,2466.7,1.37145442]
[1769901858139,0.01216594,2468.1,2466.7,1.00727099]
[1769901858445,0.01216594,2468.1,2466.7,0.0011]
[1769901858446,0.01216594,2467.5,2466.7,0.0011]
[1769901858647,1.02550143,2467.1,2466.7,0.0011]
[1769901858848,4.05219223,2468.0,2466.7,0.0011]
[1769901859070,0.01216594,2468.0,2466.7,0.0011]
[1769901859244,1.01292492,2468.1,2466.7,0.0011]
[1769901859751,0.1024,2468.9,2466.8,0.82389851]
[1769901859752,4.06288089,2468.9,2466.8,0.82389851]
[1769901859940,0.01216594,2469.9,2467.5,1.00617099]
[1769901859941,4.04956669,2469.5,2467.5,1.00617099]
[1769901860277,0.01216594,2469.2,2467.6,0.82322987]
[1769901860440,0.01216594,2469.2,2466.9,2.06285554]
[1769901860441,0.01216594,2468.8,2467.4,1.00617099]
[1769901860641,1.01247367,2469.2,2467.6,1.01313016]
[1769901860841,1.01247367,2469.2,2467.7,1.51287097]
[1769901861046,1.01247367,2469.2,2467.8,0.82335344]
[1769901861246,1.01247367,2469.2,2467.9,0.82335344]
[1769901861469,0.01216594,2469.7,2467.7,0.68951753]
[1769901861470,4.04865235,2470.0,2468.0,0.82315603]
[1769901861664,4.04865235,2470.0,2468.1,0.82315603]
[1769901861665,5.8423744,2470.0,2468.1,0.82315603]
[1769901861970,1.78155611,2470.0,2468.2,1.00617099]
[1769901862277,2.57335721,2470.4,2468.2,1.00617099]
[1769901862278,1.01169519,2471.1,2469.1,0.01216594]
[1769901862439,1.01169519,2471.1,2469.2,0.01216594]
[1769901862646,1.0114496,2471.7,2469.8,2.0183987]
[1769901862841,0.01216594,2471.6,2469.9,1.43110358]
[1769901863055,0.01216594,2471.3,2469.9,0.60794755]
[1769901863237,0.01216594,2471.0,2469.4,2.01853421]
[1769901863443,0.01216594,2471.0,2469.0,1.00617099]
[1769901863444,0.01216594,2470.7,2469.0,1.00617099]
[1769901863643,0.01216594,2470.8,2469.3,1.01241218]
[1769901863874,0.01216594,2471.0,2469.7,1.01225146]
[1769901864044,2.74710905,2471.7,2469.8,1.32740216]
[1769901864245,1.73565945,2471.7,2469.9,0.8212658]
[1769901864550,4.2580354,2471.9,2469.9,0.8212658]
[1769901864551,1.22394734,2471.9,2470.1,1.00617099]
[1769901864869,0.001,2471.9,2470.5,1.00617099]
[1769901865071,1.01236962,2471.9,2470.5,1.00617099]
[1769901865274,0.001,2471.9,2470.6,1.00617099]
[1769901865443,0.001,2471.9,2470.7,1.00617099]
[1769901865651,0.21147237,2472.4,2471.1,0.01216594]
[1769901865954,0.01216594,2470.9,2469.4,1.01236773]
[1769901866270,0.01216594,2471.0,2469.4,0.23827222]
[1769901866472,0.01216594,2471.2,2469.8,1.01219794]
[1769901866682,1.01169519,2471.1,2469.8,4.554968]
[1769901866879,1.01169519,2471.1,2469.9,1.01218672]
[1769901867201,1.01169519,2471.1,2469.8,1.01219913]
[1769901867370,1.01149053,2471.6,2469.9,0.506111]
[1769901867703,1.01149053,2471.6,2469.9,1.87646542]
[1769901867996,0.01216594,2471.0,2469.7,1.01226285]
[1769901868294,0.01216594,2471.3,2469.8,1.01222531]
[1769901868466,0.01216594,2471.3,2469.3,2.0506896]
[1769901868467,0.01216594,2470.6,2469.0,1.37035442]
[1769901868668,1.01214574,2470.0,2468.5,1.37035442]
[1769901868890,1.01214574,2470.0,2468.7,1.01264702]
[1769901869096,4.04858299,2470.2,2468.7,1.01264702]
[1769901869097,1.0120638,2470.2,2468.7,1.01264702]
[1769901869264,0.01216594,2470.8,2469.0,1.37035442]
[1769901869265,4.0475456,2470.7,2469.0,1.37035442]
[1769901869467,0.01216594,2470.6,2468.9,1.37035442]
[1769901869688,0.01216594,2470.1,2468.5,1.37035442]
[1769901869991,0.01216594,2470.4,2468.5,1.37035442]
[1769901870192,0.01216594,2469.7,2468.2,1.37035442]
[1769901870502,0.01216594,2469.6,2468.1,1.01290879]
[1769901870669,1.01222771,2469.8,2468.0,2.38327934]
[1769901870998,1.01222771,2469.8,2468.3,1.37035442]
[1769901871197,1.01222771,2469.8,2468.2,1.37035442]
[1769901871503,1.01222771,2469.8,2468.3,1.37035442]
[1769901871688,1.01214574,2470.0,2468.5,1.38252036]
[1769901871870,1.01214574,2470.0,2468.6,1.37035442]
[1769901872072,1.01214574,2470.0,2468.5,1.37035442]
[1769901872370,1.0120638,2470.2,2468.5,1.37035442]
[1769901872569,1.01185898,2470.7,2468.7,1.38252036]
[1769901872804,1.01173613,2471.0,2469.3,1.37035442]
[1769901873096,1.01173613,2471.0,2469.2,1.37035442]
[1769901873294,1.02390207,2471.0,2469.2,1.37035442]
[1769901873496,0.01216594,2470.9,2469.2,1.37035442]
[1769901873695,0.50950722,2470.9,2469.3,0.23828691]
[1769901874113,13.06191468,2471.7,2469.7,0.01216594]
[1769901874398,1.01120414,2472.3,2470.5,1.38252036]
[1769901874575,3.24859731,2472.3,2470.7,1.37035442]
[1769901874765,0.01216594,2472.2,2470.6,1.37035442]
[1769901874974,0.01216594,2472.0,2470.4,1.37035442]
[1769901875173,0.76387116,2472.2,2470.6,1.01188958]
[1769901875395,3.26076325,2472.3,2470.6,1.01188958]
[1769901875396,1.01120414,2472.3,2470.6,1.01188958]
[1769901875585,1.01120414,2472.3,2470.6,2.382244]
[1769901875790,1.01120414,2472.3,2470.6,2.39440994]
[1769901875979,1.22263988,2472.4,2471.0,1.37035442]
[1769901876313,4.04343052,2473.2,2471.4,0.01216594]
[1769901876476,4.25484388,2473.2,2471.4,1.38252036]
[1769901876676,4.84517055,2473.2,2471.5,1.37035442]
[1769901876900,4.84517055,2473.2,2471.5,1.01153145]
[1769901877105,4.84517055,2473.2,2471.2,1.01163808]
[1769901877106,0.01216594,2472.4,2471.2,1.01163808]
[1769901877270,0.01216594,2472.4,2470.6,1.37035442]
[1769901877271,0.01216594,2472.2,2470.6,1.37035442]
[1769901877606,0.01216594,2472.2,2469.8,0.01216594]
[1769901877607,0.01216594,2471.6,2470.5,1.01192676]
[1769901877916,0.01216594,2471.8,2469.9,1.37035442]
[1769901878075,0.11456594,2472.8,2469.8,2.0506896]
[1769901878076,0.01216594,2472.3,2470.3,1.37035442]
[1769901878276,0.01216594,2471.8,2470.4,0.82385847]
[1769901878475,0.01216594,2471.8,2470.3,4.04805288]
[1769901878476,12.84412697,2472.9,2470.6,4.04751222]
[1769901878780,1.01104056,2472.7,2470.9,4.04706709]
[1769901878986,1.01104056,2472.7,2471.0,1.32974289]
[1769901879200,1.01104056,2472.7,2471.1,0.82385847]
[1769901879508,1.01104056,2472.7,2471.2,0.82385847]
[1769901879722,1.01104056,2472.7,2471.3,2.19421289]
[1769901879909,1.01098595,2472.9,2471.4,2.41363418]
[1769901880219,1.01098595,2472.9,2471.5,0.82385847]
[1769901880420,1.01098595,2472.9,2471.6,0.82385847]
[1769901880589,1.01098595,2472.9,2471.4,0.21942129]
[1769901880590,0.21141336,2473.2,2471.7,0.83602441]
[1769901880790,0.01216594,2472.8,2471.8,0.82385847]
[1769901881112,1.01038677,2474.3,2472.5,0.01216594]
[1769901881433,0.00905223,2475.3,2473.7,0.01216594]
[1769901881589,0.00905223,2475.3,2474.3,0.01216594]
[1769901881904,0.00905223,2475.3,2474.1,0.01216594]
[1769901881905,0.00905223,2475.3,2473.9,0.01216594]
[1769901882108,12.93683241,2476.1,2474.7,0.01216594]
[1769901882109,1.00969305,2476.0,2474.7,0.01216594]
[1769901882324,1.00969305,2476.0,2474.0,0.01216594]
[1769901882618,0.01216594,2475.9,2473.7,0.01216594]
[1769901882944,1.02185899,2476.0,2473.7,0.01216594]
[1769901882945,1.00997858,2475.3,2473.8,0.01216594]
[1769901883219,4.0389708,2475.9,2474.6,0.01216594]
[1769901883390,0.01216594,2475.7,2473.3,0.24573624]
[1769901883591,12.73778905,2475.7,2473.4,0.01216594]
[1769901883925,12.73778905,2475.7,2473.9,0.01216594]
[1769901883926,12.72562311,2475.7,2473.9,0.01216594]
[1769901884092,1.32812215,2475.6,2473.9,0.01216594]
[1769901884291,12.73778905,2475.5,2472.9,4.05551059]
[1769901884529,12.72562311,2475.5,2473.6,0.01216594]
[1769901884737,12.72562311,2475.5,2472.5,1.37035442]
[1769901884738,0.01216594,2473.8,2472.5,1.37035442]
[1769901884889,0.01216594,2473.8,2472.0,2.68312266]
[1769901884890,12.72562311,2473.9,2472.2,1.01123284]
[1769901885089,0.01216594,2474.2,2472.2,1.01123284]
[1769901885090,1.01030511,2474.5,2472.8,0.01216594]
[1769901885290,1.01030511,2474.5,2473.2,0.01216594]
[1769901885485,1.00997858,2475.3,2473.8,0.01216594]
[1769901885730,1.00997858,2475.3,2473.7,0.01216594]
[1769901886042,1.00997858,2475.3,2473.9,0.01216594]
[1769901886322,1.00997858,2475.3,2474.1,0.01216594]
[1769901886530,1.00997858,2475.3,2474.3,0.01216594]
[1769901886825,4.03991435,2475.4,2474.0,0.01216594]
[1769901887129,4.03991435,2475.4,2473.9,0.01216594]
[1769901887130,0.40399144,2475.3,2473.9,0.01216594]
[1769901887297,13.12961455,2475.3,2473.1,0.01216594]
[1769901887497,12.73778905,2474.9,2472.7,0.01216594]
[1769901887699,12.73778905,2474.9,2471.9,1.38252036]
[1769901887700,12.73778905,2474.9,2471.6,1.02361813]
[1769901887701,12.73778905,2474.0,2471.6,1.02361813]
[1769901887904,12.72562311,2473.4,2471.4,0.23158723]
[1769901888236,12.72562311,2473.0,2471.4,1.01154958]
[1769901888390,1.2737789,2472.9,2471.2,0.01216594]
[1769901888721,1.2737789,2472.9,2471.3,0.01216594]
[1769901889025,12.72562311,2472.7,2470.9,0.01216594]
[1769901889196,12.72562311,2472.7,2471.1,0.01216594]
[1769901889518,1.01099967,2472.8,2471.6,0.01216594]
[1769901889686,1.01099967,2472.8,2470.4,1.02412023]
[1769901889891,1.01099967,2472.8,2471.5,0.01216594]
[1769901890336,0.848,2473.3,2471.5,0.01216594]
[1769901890337,4.0410504,2474.7,2471.5,11.26547978]
[1769901890549,1.01011647,2475.0,2473.1,0.01216594]
[1769901890705,0.01216594,2474.4,2472.4,1.37035442]
[1769901890902,12.72562311,2475.1,2472.5,1.82660436]
[1769901890903,12.72562311,2475.0,2472.5,1.82660436]
[1769901891149,0.01216594,2473.6,2472.6,0.58710937]
[1769901891439,0.01216594,2474.0,2472.5,1.01110665]
[1769901891440,9.01569512,2475.6,2472.5,1.01110665]
[1769901891643,0.01216594,2473.9,2472.6,0.81616178]
[1769901891795,0.01216594,2473.9,2472.1,6.09517898]
[1769901891796,0.01216594,2473.3,2471.8,4.04559265]
[1769901891996,0.01216594,2473.1,2472.2,1.01121808]
[1769901892298,0.01216594,2473.4,2472.5,1.01112203]
[1769901892734,0.01216594,2473.3,2472.5,1.01111571]
[1769901892934,0.01216594,2473.3,2471.6,2.38184495]
[1769901893236,0.01016594,2473.2,2471.7,1.46027501]
[1769901893538,0.01216594,2472.5,2471.5,1.01149681]
[1769901893839,0.01216594,2472.5,2470.8,2.0517896]
[1769901893840,0.01216594,2472.1,2470.8,0.0011]
[1769901894005,0.01216594,2471.8,2471.1,1.01166431]
[1769901894351,0.01216594,2471.8,2470.8,0.0011]
[1769901894352,0.01216594,2471.3,2470.8,0.0011]
[1769901894632,0.01216594,2471.1,2470.8,0.0011]
[1769901894846,1.02394302,2470.9,2470.8,0.0011]
[1769901894992,0.01216594,2470.9,2470.8,0.0011]
[1769901895352,0.01216594,2470.9,2469.5,1.01232797]
[1769901895634,0.01216594,2470.3,2469.2,1.01244761]
[1769901895926,0.01216594,2470.4,2469.4,1.01238859]
[1769901896230,0.01216594,2470.3,2468.8,4.05045067]
[1769901896444,0.01216594,2470.9,2469.7,1.01224568]
[1769901896600,0.01216594,2470.7,2469.7,1.01224568]
[1769901896998,0.01216594,2470.7,2469.1,1.01251468]
[1769901897214,0.01216594,2471.1,2469.1,1.01251468]
[1769901897215,1.01140869,2471.9,2469.8,1.37035442]
[1769901897410,1.01132584,2472.1,2470.1,1.60392472]
[1769901897646,0.01216594,2471.7,2470.2,0.82047032]
[1769901897814,0.01216594,2471.9,2470.3,1.03955279]
[1769901898011,1.02349178,2472.1,2470.4,0.82047032]
[1769901898212,1.02349178,2472.1,2470.2,0.2335703]
[1769901898213,14.0,2474.9,2473.1,0.01216594]
[1769901898413,1.01018264,2474.8,2474.0,0.01216594]
[1769901898650,1.01018264,2474.8,2473.5,0.01216594]
[1769901898651,15.01018264,2474.8,2473.3,0.01216594]
[1769901898814,15.01018264,2474.8,2472.4,1.38252036]
[1769901898815,14.0,2474.6,2473.2,0.01216594]
[1769901899163,15.01030511,2474.5,2473.3,0.01216594]
[1769901899317,15.01030511,2474.5,2472.7,1.02318809]
[1769901899318,16.60081424,2474.5,2472.7,1.02318809]
[1769901899514,16.60081424,2474.5,2472.8,1.01099904]
[1769901899851,14.0,2474.3,2473.1,0.01216594]
[1769901900148,14.0,2474.3,2473.0,0.01216594]
[1769901900149,14.0,2474.3,2473.0,1.02308034]
[1769901900339,14.0,2474.3,2473.4,1.0107434]
[1769901900537,14.0,2474.3,2473.6,0.01216594]
[1769901900753,14.0,2474.3,2473.3,0.01216594]
[1769901900951,15.4,2474.2,2473.1,1.01085265]
[1769901901253,1.01046845,2474.1,2472.8,0.01216594]
[1769901901465,14.0,2473.9,2472.0,1.38252036]
[1769901901770,1.01046845,2474.1,2472.3,0.01216594]
[1769901901771,14.0,2473.7,2472.3,0.01216594]
[1769901901919,0.01216594,2473.4,2471.0,0.01216594]
[1769901902126,0.01216594,2473.4,2470.6,4.04748965]
[1769901902127,14.0,2472.4,2470.4,1.37035442]
[1769901902358,14.01216594,2472.0,2470.5,0.82202506]
[1769901902668,14.0,2473.6,2472.3,0.01216594]
[1769901902830,14.0,2473.6,2472.2,0.01216594]
[1769901903042,14.0,2473.4,2471.9,0.01216594]
[1769901903255,14.0,2473.4,2472.1,1.01126518]
[1769901903458,14.0,2473.4,2471.5,1.37035442]
[1769901903758,14.0,2473.4,2472.0,1.01132471]
[1769901903918,14.0,2473.4,2472.0,1.01132548]
[1769901904118,14.0,2473.2,2471.9,1.01134238]
[1769901904318,14.0,2473.2,2472.1,1.01128575]
[1769901904519,0.01216594,2474.8,2472.5,0.01216594]
[1769901904520,14.0,2474.3,2472.5,0.01216594]
[1769901904784,14.0,2474.3,2472.1,1.02345169]
[1769901904785,14.0,2473.9,2471.9,1.37035442]
[1769901904950,14.0,2473.9,2471.4,1.32995442]
[1769901904951,14.01216594,2473.5,2471.4,1.32995442]
[1769901905145,14.01216594,2473.5,2470.9,1.01176171]
[1769901905146,14.0,2472.9,2470.9,1.01176171]
[1769901905365,14.0,2472.9,2471.0,1.83575848]
[1769901905544,14.0,2472.5,2470.4,4.04791292]
[1769901905752,14.0,2472.3,2470.5,2.44592392]
[1769901905964,14.0,2472.3,2470.6,0.82413076]
[1769901906543,14.0,2472.3,2470.7,0.82413076]
[1769901906778,14.0,2472.3,2470.8,0.82413076]
[1769901907081,14.0,2471.7,2470.0,0.0011]
[1769901907374,14.0,2471.7,2470.1,0.82439784]
[1769901907582,14.0,2471.7,2470.2,0.82439784]
[1769901907880,14.0,2471.7,2470.3,0.82439784]
[1769901907881,15.90570435,2471.7,2470.3,0.82439784]
[1769901908051,14.01216594,2471.5,2470.0,0.0011]
[1769901908251,14.0,2471.3,2470.0,0.0011]
[1769901908455,4.0578007,2472.1,2470.0,0.0011]
[1769901908456,14.0,2473.3,2472.3,0.01216594]
[1769901908681,15.01080277,2473.3,2473.1,0.01216594]
[1769901908867,1.01080277,2473.3,2472.8,0.01216594]
[1769901909068,1.01080277,2473.3,2472.4,0.00096988]
[1769901909069,1.92051928,2473.3,2471.3,0.01216594]
[1769901909377,1.92051928,2473.3,2471.2,0.01216594]
[1769901909378,1.01083616,2473.2,2472.4,0.01216594]
[1769901909581,1.01083616,2473.2,2472.0,1.02348497]
[1769901909582,0.01216594,2472.9,2471.3,2.0506896]
[1769901909769,0.01216594,2472.7,2471.4,1.02730815]
[1769901909970,0.01216594,2472.1,2470.6,2.0506896]
[1769901910280,0.01216594,2472.2,2470.1,3.68557413]
[1769901910281,0.01216594,2472.2,2470.8,1.01179452]
[1769901910578,0.01216594,2472.2,2470.0,4.04958775]
[1769901910579,0.01216594,2471.5,2470.0,0.0011]
[1769901910881,0.01216594,2470.3,2470.0,0.0011]
[1769901911080,1.02430486,2470.1,2469.2,0.64330451]
[1769901911288,4.06003721,2470.5,2469.2,1.01246755]
[1769901911452,0.01216594,2470.4,2469.2,1.01245717]
[1769901911662,1.02402984,2470.7,2469.2,1.01245717]
[1769901911963,0.01216594,2470.0,2469.3,0.50623519]
[1769901912159,0.01216594,2469.8,2469.3,0.50623519]
[1769901912360,0.01216594,2470.1,2469.1,1.01249778]
[1769901912565,0.01216594,2469.9,2468.4,2.0506896]
[1769901912764,0.01216594,2469.5,2468.0,2.0506896]
[1769901912965,0.01216594,2469.4,2468.6,1.01269083]
[1769901913256,0.01216594,2469.4,2468.1,0.61026127]
[1769901913257,0.01216594,2469.3,2468.1,0.61026127]
[1769901913480,0.01216594,2469.2,2468.1,1.01292183]
[1769901913763,4.04891084,2469.9,2468.6,0.0011]
[1769901913964,0.01216594,2469.6,2468.6,0.0011]
[1769901914179,0.01216594,2470.2,2468.6,0.0011]
[1769901914180,0.01216594,2470.7,2468.6,0.0011]
[1769901914483,0.01216594,2470.3,2468.6,0.0011]
[1769901914684,0.01216594,2470.2,2468.6,0.0011]
[1769901914891,0.01216594,2470.2,2468.2,2.6952886]
[1769901914892,13.75295072,2469.7,2468.2,2.68312266]
[1769901915054,13.75295072,2469.7,2467.4,0.01216594]
[1769901915055,0.01216594,2469.3,2466.9,0.0011]
[1769901915255,0.01216594,2468.1,2466.9,0.0011]
[1769901915564,0.01216594,2469.3,2467.0,1.01335394]
[1769901915773,0.01216594,2468.7,2467.0,1.01335394]
[1769901915992,0.01216594,2468.6,2467.1,0.50679602]
[1769901916171,0.01216594,2468.7,2467.1,0.50679602]
[1769901916370,0.01216594,2468.5,2467.1,0.50679602]
[1769901916565,0.01216594,2468.4,2467.1,0.50679602]
[1769901916981,0.01216594,2468.3,2467.1,0.50679602]
[1769901917186,1.01276078,2468.5,2466.9,0.0011]
[1769901917486,1.02492672,2468.5,2466.9,0.0011]
[1769901917697,0.01216594,2468.2,2466.9,0.0011]
[1769901917883,0.01216594,2467.7,2466.9,0.0011]
[1769901918065,0.01216594,2469.0,2466.9,0.0011]
[1769901918267,0.01216594,2467.8,2466.9,0.0011]
[1769901918460,0.01216594,2467.7,2466.9,0.0011]
[1769901918661,0.01216594,2467.5,2466.9,0.0011]
[1769901918993,0.01216594,2467.6,2466.9,0.0011]
[1769901919165,0.01216594,2467.5,2466.9,0.0011]
[1769901919359,1.01308911,2467.7,2466.9,0.0011]
[1769901919558,0.01216594,2467.6,2466.9,0.0011]
[1769901919776,0.01216594,2467.5,2466.9,0.0011]
[1769901920002,0.01216594,2467.3,2466.7,0.0011]
[1769901920160,0.01216594,2467.6,2466.7,0.0011]
[1769901920791,0.01216594,2467.5,2466.7,0.0011]
[1769901921097,0.01216594,2467.4,2466.7,0.0011]
[1769901921463,0.01216594,2467.6,2466.7,0.0011]
[1769901921659,0.01216594,2467.2,2466.7,0.0011]
[1769901921865,0.01216594,2467.3,2466.7,0.0011]
[1769901922089,0.01216594,2467.2,2466.7,0.0011]
[1769901922262,0.01216594,2467.6,2466.7,0.0011]
[1769901922590,0.01216594,2467.5,2466.7,0.0011]
[1769901922791,0.01216594,2467.3,2466.7,0.0011]
[1769901922977,0.01216594,2467.4,2466.7,0.0011]
[1769901923895,0.01216594,2467.0,2466.7,0.0011]
[1769901924109,0.01216594,2467.0,2466.6,0.0011]
[1769901924110,0.01216594,2466.9,2466.6,0.0011]
[1769901924395,0.01216594,2467.2,2466.6,0.0011]
[1769901924691,0.01216594,2467.1,2466.6,0.0011]
[1769901924889,0.01216594,2466.9,2466.6,0.0011]
[1769901925461,0.01216594,2467.3,2465.5,4.05564342]